bitfinex/quotes_ETHUSD_20210401
["timestamp","ask_amount","ask_price","bid_price","bid_amount"]
[1617295636494,2.16385576,1942.7,1942.2,0.39]
[1617295636695,2.16385576,1942.7,1942.3,8.531]
[1617295636894,7.26385427,1942.8,1942.4,0.758]
[1617295637095,8.46385427,1942.8,1942.4,0.38]
[1617295637504,7.26385427,1942.8,1942.4,0.38]
[1617295637898,1.2,1942.7,1942.4,0.38]
[1617295638101,1.2,1942.7,1942.3,7.722]
[1617295638498,2.16355153,1942.6,1942.2,0.39]
[1617295639300,2.16355153,1942.6,1942.2,0.34]
[1617295640115,2.16355153,1942.6,1942.2,8.0624]
[1617295640914,5.1,1942.8,1942.2,8.3424]
[1617295641114,5.1,1942.8,1942.3,0.41]
[1617295641313,5.1,1942.8,1942.4,7.7218]
[1617295641514,2.163149,1942.7,1942.4,8.1318]
[1617295642515,2.163149,1942.7,1942.4,7.7218]
[1617295642738,5.1,1942.8,1942.2,0.68]
[1617295642934,5.1,1942.8,1942.2,5.69]
[1617295643134,7.65,1942.8,1942.2,5.69]
[1617295644134,2.16314751,1942.7,1942.3,0.42]
[1617295644336,7.649,1942.8,1942.3,0.77]
[1617295644536,7.649,1942.8,1942.4,0.4]
[1617295644936,2.16315049,1942.7,1942.3,5.38]
[1617295645136,7.649,1942.8,1942.3,5.78]
[1617295645366,7.649,1942.8,1942.3,5.68]
[1617295645563,7.649,1942.8,1942.3,5.28]
[1617295646163,7.649,1942.8,1942.4,7.72182]
[1617295648085,7.649,1942.8,1942.6,0.39]
[1617295648288,7.6,1942.8,1942.6,0.39]
[1617295648495,7.6,1942.8,1942.7,5.89]
[1617295648889,7.6,1942.8,1942.7,8.83635766]
[1617295649087,7.6,1942.8,1942.7,13.84635766]
[1617295649287,7.6,1942.8,1942.7,18.62049]
[1617295649485,7.6,1942.8,1942.7,22.43702149]
[1617295649887,6.6,1942.8,1942.7,30.43702149]
[1617295650085,6.6,1942.8,1942.7,34.55272149]
[1617295650489,9.15,1942.8,1942.7,34.55272149]
[1617295651537,9.15,1942.8,1942.7,26.05272149]
[1617295651735,9.15,1942.8,1942.7,18.05272149]
[1617295651934,9.15,1942.8,1942.7,16.93702149]
[1617295652135,9.15,1942.8,1942.7,24.93702149]
[1617295652336,9.15,1942.8,1942.7,27.93702149]
[1617295652935,9.15,1942.8,1942.7,24.93702149]
[1617295653741,9.15,1942.8,1942.7,27.93702149]
[1617295654349,9.15,1942.8,1942.7,15.94049]
[1617295654742,9.15,1942.8,1942.7,13.12049]
[1617295654943,8.15,1942.8,1942.7,13.12049]
[1617295657977,10.7,1942.8,1942.7,13.12049]
[1617295658998,10.7,1942.8,1942.7,12.73049]
[1617295659999,9.7,1942.8,1942.7,13.12049]
[1617295660600,9.7,1942.8,1942.7,8.11049]
[1617295661005,9.7,1942.8,1942.7,7.72049]
[1617295662014,9.7,1942.8,1942.7,8.13049]
[1617295662818,9.7,1942.8,1942.7,7.72049]
[1617295665042,8.7,1942.8,1942.7,7.72049]
[1617295665441,11.25,1942.8,1942.7,7.72049]
[1617295666043,11.25,1942.8,1942.7,8.10049]
[1617295667285,11.25,1942.8,1942.7,7.72049]
[1617295668890,11.25,1942.8,1942.7,8.13049]
[1617295669890,10.25,1942.8,1942.7,8.13049]
[1617295670489,10.25,1942.8,1942.7,7.72049]
[1617295671291,10.25,1942.8,1942.7,8.11049]
[1617295672519,10.25,1942.8,1942.7,7.72049]
[1617295672918,12.8,1942.8,1942.7,7.72049]
[1617295675043,11.8,1942.8,1942.7,28.10902742]
[1617295675244,11.8,1942.8,1942.7,34.59792742]
[1617295675443,11.8,1942.8,1942.7,39.71706499]
[1617295675843,11.8,1942.8,1942.7,39.07455891]
[1617295676043,11.8,1942.8,1942.7,42.07455891]
[1617295677066,11.8,1942.8,1942.7,42.02455891]
[1617295677467,1.51126,1942.8,1942.7,42.02455891]
[1617295677873,12.0,1943.4,1942.9,0.51406894]
[1617295678067,12.0,1943.4,1943.2,0.41]
[1617295678668,12.0,1943.4,1943.3,7.71656]
[1617295679067,12.0,1943.4,1943.2,15.29875]
[1617295679696,12.0,1943.4,1943.2,10.28875]
[1617295679895,11.0,1943.4,1943.2,10.28875]
[1617295680298,13.55,1943.4,1943.2,10.28875]
[1617295681097,13.55,1943.4,1943.2,10.68875]
[1617295681298,13.55,1943.4,1943.2,12.43185]
[1617295681496,13.55,1943.4,1943.2,12.42185]
[1617295682117,13.55,1943.4,1943.2,12.03185]
[1617295682516,13.55,1943.4,1943.2,10.28875]
[1617295682716,13.55,1943.4,1943.3,7.71748]
[1617295682916,13.55,1943.4,1943.3,10.41748]
[1617295684945,12.55,1943.4,1943.3,7.71748]
[1617295686948,12.55,1943.4,1943.3,10.41748]
[1617295687765,15.1,1943.4,1943.3,10.41748]
[1617295689988,14.1,1943.4,1943.3,10.41748]
[1617295690189,14.1,1943.4,1943.3,10.82748]
[1617295690390,14.1,1943.4,1943.3,10.41748]
[1617295691793,14.1,1943.4,1943.3,8.41748]
[1617295692813,14.1,1943.4,1943.3,2.7]
[1617295693013,14.1,1943.4,1943.2,10.28875]
[1617295693620,14.24,1943.4,1943.0,7.99918]
[1617295693816,14.24,1943.4,1943.0,7.71918]
[1617295694017,3.08,1943.3,1943.0,7.71918]
[1617295694814,3.08,1943.3,1942.8,10.29224]
[1617295695021,5.94704,1943.3,1942.8,10.29224]
[1617295695265,8.49704,1943.3,1942.8,10.29224]
[1617295695465,3.0,1943.2,1942.8,10.29224]
[1617295696266,2.557,1943.3,1942.9,0.364]
[1617295696467,2.557,1943.3,1943.0,0.4]
[1617295696468,2.55,1943.3,1943.0,0.4]
[1617295696668,2.55,1943.3,1943.0,0.68]
[1617295697269,2.55,1943.3,1943.0,0.4]
[1617295697673,2.55,1943.3,1943.1,7.71865]
[1617295697871,2.55,1943.3,1943.1,10.41865]
[1617295698068,2.55,1943.3,1943.1,10.69865]
[1617295698269,2.55,1943.3,1943.2,5.01]
[1617295698871,2.55,1943.3,1943.2,7.71747]
[1617295702497,2.55,1943.3,1943.0,0.38]
[1617295702695,5.1,1943.3,1942.9,10.2896]
[1617295702904,5.1,1943.3,1942.9,10.5696]
[1617295703320,5.1,1943.3,1942.9,11.51613149]
[1617295703720,5.1,1943.3,1942.9,10.5696]
[1617295703919,2.9,1943.2,1942.9,10.5696]
[1617295704120,2.9,1943.2,1943.1,7.7195]
[1617295704320,5.1,1943.3,1943.1,7.7195]
[1617295709389,5.1,1943.3,1943.1,7.9995]
[1617295710189,7.65,1943.3,1943.2,5.01]
[1617295711594,7.65,1943.3,1943.2,12.72848]
[1617295711794,7.65,1943.3,1943.2,15.88848]
[1617295714023,7.65,1943.3,1943.1,0.1593974]
[1617295715023,7.65,1943.3,1942.7,0.67]
[1617295715222,7.65,1943.3,1942.9,7.72043]
[1617295715424,5.02,1943.2,1942.9,7.72043]
[1617295716640,5.02,1943.2,1942.9,8.41043]
[1617295716841,7.65,1943.3,1943.1,0.4]
[1617295717439,10.2,1943.3,1943.1,0.4]
[1617295717640,10.2,1943.3,1943.2,7.7189]
[1617295718440,10.2,1943.3,1943.2,10.4189]
[1617295719070,10.2,1943.3,1943.2,10.7989]
[1617295720875,10.2,1943.3,1943.2,10.4189]
[1617295724917,12.75,1943.3,1943.2,10.4189]
[1617295725719,12.75,1943.3,1943.2,7.7189]
[1617295726524,12.7,1943.3,1943.2,7.7189]
[1617295727348,12.7,1943.3,1943.2,8.1089]
[1617295727549,12.7,1943.3,1943.2,10.9089]
[1617295727751,12.7,1943.3,1943.2,10.5189]
[1617295728951,12.7,1943.3,1943.2,7.7189]
[1617295731369,12.7,1943.3,1943.2,10.4589]
[1617295732395,15.25,1943.3,1943.2,10.4589]
[1617295734822,15.25,1943.3,1943.2,22.14564264]
[1617295735022,15.25,1943.3,1943.2,30.14564264]
[1617295735223,15.25,1943.3,1943.2,35.42184677]
[1617295735622,15.25,1943.3,1943.2,34.09217413]
[1617295735821,15.25,1943.3,1943.2,34.42117413]
[1617295736421,15.25,1943.3,1943.2,40.62117413]
[1617295736623,15.25,1943.3,1943.2,45.62117413]
[1617295737029,14.25,1943.3,1943.2,44.09217413]
[1617295738045,14.25,1943.3,1943.2,45.29217413]
[1617295738845,14.25,1943.3,1943.2,46.09737413]
[1617295739981,16.829629,1943.3,1943.2,46.09737413]
[1617295740776,0.694529,1943.4,1943.3,26.95]
[1617295740976,0.694529,1943.4,1943.3,84.11953149]
[1617295741177,4.1,1943.9,1943.5,2.0570012]
[1617295741378,4.1,1943.9,1943.8,15.95654754]
[1617295741576,4.1,1943.9,1943.8,22.57904754]
[1617295741975,3.1,1943.9,1943.8,10.02904754]
[1617295742376,3.1,1943.9,1943.8,20.02904754]
[1617295742601,3.1,1943.9,1943.8,27.74256754]
[1617295743001,3.1,1943.9,1943.8,25.76255149]
[1617295743602,3.1,1943.9,1943.8,24.81602]
[1617295743803,3.1,1943.9,1943.8,30.63602]
[1617295744000,3.1,1943.9,1943.8,31.58255149]
[1617295745422,3.1,1943.9,1943.8,20.63602]
[1617295747023,2.1,1943.9,1943.8,20.63602]
[1617295747428,4.65,1943.9,1943.8,20.63602]
[1617295748051,4.65,1943.9,1943.8,28.63602]
[1617295750058,4.65,1943.9,1943.8,28.80772743]
[1617295750254,4.65,1943.9,1943.8,20.80772743]
[1617295750474,4.65,1943.9,1943.8,28.80772743]
[1617295750874,4.65,1943.9,1943.8,20.80772743]
[1617295752073,3.65,1943.9,1943.8,20.80772743]
[1617295754111,3.65,1943.9,1943.8,30.80772743]
[1617295754911,6.2,1943.9,1943.8,30.80772743]
[1617295756952,6.2,1943.9,1943.8,38.80772743]
[1617295757153,5.2,1943.9,1943.8,38.80772743]
[1617295758554,5.2,1943.9,1943.8,38.42772743]
[1617295758756,5.2,1943.9,1943.8,20.42772743]
[1617295759156,5.2,1943.9,1943.8,25.43772743]
[1617295760157,5.2,1943.9,1943.8,20.42772743]
[1617295760560,5.2,1943.9,1943.8,14.60772743]
[1617295760756,5.2,1943.9,1943.8,7.88522743]
[1617295762168,4.2,1943.9,1943.8,7.88522743]
[1617295762369,6.75,1943.9,1943.8,10.72522743]
[1617295762568,6.75,1943.9,1943.8,15.73522743]
[1617295762971,6.75,1943.9,1943.8,24.39522743]
[1617295763369,6.75,1943.9,1943.8,25.34175892]
[1617295763600,6.75,1943.9,1943.8,33.19425892]
[1617295765397,6.75,1943.9,1943.8,32.38405892]
[1617295767032,5.75,1943.9,1943.8,32.38405892]
[1617295767635,5.75,1943.9,1943.8,42.38405892]
[1617295769649,8.3,1943.9,1943.8,42.38405892]
[1617295770049,8.3,1943.9,1943.8,29.09405892]
[1617295770251,8.3,1943.9,1943.8,21.10522743]
[1617295770648,8.3,1943.9,1943.8,16.10522743]
[1617295770850,8.3,1943.9,1943.8,17.05175892]
[1617295771056,8.3,1943.9,1943.8,16.10522743]
[1617295771497,8.3,1943.9,1943.8,17.05175892]
[1617295771695,8.3,1943.9,1943.8,16.10522743]
[1617295771899,8.3,1943.9,1943.8,17.05175892]
[1617295772096,7.3,1943.9,1943.8,17.05175892]
[1617295772296,7.3,1943.9,1943.8,16.10522743]
[1617295772695,7.3,1943.9,1943.8,15.72522743]
[1617295773703,7.3,1943.9,1943.8,10.72522743]
[1617295777124,8.85,1943.9,1943.8,10.72522743]
[1617295777325,8.85,1943.9,1943.8,18.72522743]
[1617295777727,8.85,1943.9,1943.8,19.11522743]
[1617295779357,8.85,1943.9,1943.8,11.11522743]
[1617295779556,8.85,1943.9,1943.8,10.72522743]
[1617295779757,8.85,1943.9,1943.8,18.72522743]
[1617295781757,8.85,1943.9,1943.8,10.72522743]
[1617295782176,7.85,1943.9,1943.8,19.11522743]
[1617295783176,7.85,1943.9,1943.8,10.72522743]
[1617295783977,7.85,1943.9,1943.8,20.72522743]
[1617295784603,10.4,1943.9,1943.8,20.72522743]
[1617295786802,10.4,1943.9,1943.8,29.11522743]
[1617295787002,10.4,1943.9,1943.8,24.11522743]
[1617295787228,10.4,1943.9,1943.8,16.11522743]
[1617295787632,10.4,1943.9,1943.8,15.72522743]
[1617295788027,10.15,1943.9,1943.8,15.72522743]
[1617295788229,10.15,1943.9,1943.8,16.11522743]
[1617295788429,10.15,1943.9,1943.8,15.72522743]
[1617295789435,10.15,1943.9,1943.8,24.11522743]
[1617295790050,10.15,1943.9,1943.8,29.11522743]
[1617295791049,9.15,1943.9,1943.8,29.11522743]
[1617295792055,11.7,1943.9,1943.8,29.11522743]
[1617295793081,11.7,1943.9,1943.8,11.11522743]
[1617295793281,11.7,1943.9,1943.8,14.06170613]
[1617295793881,11.7,1943.9,1943.8,13.67170613]
[1617295794686,11.7,1943.9,1943.8,21.67170613]
[1617295795101,11.7,1943.9,1943.8,13.67170613]
[1617295795301,11.7,1943.9,1943.8,10.72522743]
[1617295796103,10.7,1943.9,1943.8,10.72522743]
[1617295796502,10.7,1943.9,1943.8,11.10522743]
[1617295796903,10.7,1943.9,1943.8,19.10522743]
[1617295798025,10.7,1943.9,1943.8,29.10522743]
[1617295799426,13.25,1943.9,1943.8,29.10522743]
[1617295801077,12.25,1943.9,1943.8,29.10522743]
[1617295802278,12.25,1943.9,1943.8,30.05175892]
[1617295802684,1.96685,1943.9,1943.8,75.48304824]
[1617295802891,2.55,1944.4,1944.2,0.47748979]
[1617295803094,2.55,1944.4,1944.3,30.00257026]
[1617295803291,1.0,1944.9,1944.4,22.057]
[1617295803485,1.0,1944.9,1944.8,15.15]
[1617295803698,1.0,1944.9,1944.8,23.317]
[1617295803699,0.9,1944.9,1944.8,23.317]
[1617295803887,0.9,1944.9,1944.8,31.317]
[1617295804887,0.9,1944.9,1944.8,69.02525]
[1617295805087,4.1,1945.0,1944.8,69.02525]
[1617295805296,4.1,1945.0,1944.9,77.70763728]
[1617295805504,2.55,1945.4,1945.0,29.40353149]
[1617295805705,2.55,1945.4,1945.1,27.92188049]
[1617295805904,2.55,1945.4,1945.1,37.25518049]
[1617295806105,3.71,1945.2,1945.1,18.60518049]
[1617295806303,3.71,1945.2,1945.1,28.60518049]
[1617295806904,6.26,1945.2,1945.1,28.60518049]
[1617295807911,6.26,1945.2,1945.1,28.80514293]
[1617295808728,6.26,1945.2,1945.1,61.80514293]
[1617295808927,6.26,1945.2,1945.1,69.80514293]
[1617295809528,6.26,1945.2,1945.1,66.80514293]
[1617295810327,5.72312554,1945.2,1945.1,66.80514293]
[1617295810959,5.72312554,1945.2,1945.1,69.80514293]
[1617295811155,4.72312554,1945.2,1945.1,69.80514293]
[1617295811756,1.0,1945.9,1945.2,23.19406894]
[1617295811959,1.0,1945.9,1945.8,15.31]
[1617295812158,1.0,1945.9,1945.8,22.0829]
[1617295812368,1.0,1945.9,1945.8,7.1829]
[1617295812963,1.0,1945.9,1945.8,7.32831631]
[1617295813169,1.0,1945.9,1945.8,14.75427631]
[1617295813378,0.95,1945.9,1945.8,14.75427631]
[1617295813978,0.9,1945.9,1945.8,23.03427631]
[1617295814181,0.9,1945.9,1945.8,33.03427631]
[1617295814379,3.45,1945.9,1945.8,33.03427631]
[1617295816225,2.45,1945.9,1945.8,33.03427631]
[1617295817025,2.45,1945.9,1945.8,33.9808078]
[1617295818225,2.45,1945.9,1945.8,33.03427631]
[1617295819028,2.45,1945.9,1945.8,13.34427631]
[1617295821033,2.35,1945.9,1945.8,13.34427631]
[1617295821255,1.35,1945.9,1945.8,11.34427631]
[1617295821456,1.35,1945.9,1945.7,18.27461]
[1617295821657,1.35,1945.9,1945.8,5.01]
[1617295821855,1.35,1945.9,1945.5,19.31521043]
[1617295821856,3.90712059,1945.9,1945.7,5.01]
[1617295822656,5.10712059,1945.9,1945.5,10.27461]
[1617295822856,5.51412059,1945.9,1945.7,0.19577232]
[1617295823056,5.11412059,1945.9,1945.7,0.19577232]
[1617295823455,5.01412059,1945.9,1945.7,0.19577232]
[1617295825683,5.00712059,1945.9,1945.7,0.19577232]
[1617295826080,4.00712059,1945.9,1945.7,0.19577232]
[1617295826706,4.00712059,1945.9,1945.7,7.90304232]
[1617295826906,2.80712059,1945.9,1945.7,8.23904232]
[1617295827107,2.80712059,1945.9,1945.8,5.41]
[1617295828106,2.80712059,1945.9,1945.8,5.711]
[1617295828305,2.80712059,1945.9,1945.8,8.74687366]
[1617295829306,5.35712059,1945.9,1945.8,9.02687366]
[1617295829505,5.35712059,1945.9,1945.8,8.69787366]
[1617295830706,5.30712059,1945.9,1945.8,8.29787366]
[1617295830906,5.30712059,1945.9,1945.8,5.29]
[1617295831107,4.30712059,1945.9,1945.8,5.29]
[1617295832109,4.30712059,1945.9,1945.8,8.68085186]
[1617295832308,4.30712059,1945.9,1945.8,11.36085186]
[1617295832909,4.30712059,1945.9,1945.8,7.97]
[1617295833308,4.30712059,1945.9,1945.8,15.67604]
[1617295833908,4.29902059,1945.9,1945.8,15.67604]
[1617295835111,4.29902059,1945.9,1945.8,15.39604]
[1617295836113,3.29902059,1945.9,1945.8,15.39604]
[1617295836512,3.29902059,1945.9,1945.8,15.77604]
[1617295836716,5.84902059,1945.9,1945.8,15.77604]
[1617295837332,15.84902059,1945.9,1945.8,15.77604]
[1617295839340,15.84902059,1945.9,1945.8,15.39604]
[1617295840157,14.6347469,1945.9,1945.8,15.39604]
[1617295840960,14.6347469,1945.9,1945.8,10.38604]
[1617295841161,14.6347469,1945.9,1945.7,0.19577232]
[1617295841360,27.57805528,1945.8,1945.7,0.19577232]
[1617295841561,27.58505528,1945.8,1945.7,0.19577232]
[1617295842385,0.007,1945.8,1945.7,0.19577232]
[1617295842785,0.01304683,1945.8,1945.7,0.19577232]
[1617295843985,3.76304683,1945.8,1945.7,0.19577232]
[1617295844187,3.76304683,1945.8,1945.7,7.90346232]
[1617295844386,3.76304683,1945.8,1945.7,10.62346232]
[1617295844588,2.55604683,1945.8,1945.7,10.62346232]
[1617295844786,3.75604683,1945.8,1945.7,10.62346232]
[1617295845039,2.55604683,1945.8,1945.7,10.62346232]
[1617295845637,2.55604683,1945.8,1945.7,15.63346232]
[1617295846842,2.55604683,1945.8,1945.7,16.03346232]
[1617295847246,2.55604683,1945.8,1945.7,15.63346232]
[1617295848245,2.55604683,1945.8,1945.7,10.62346232]
[1617295849241,2.55604683,1945.8,1945.7,0.19577232]
[1617295851454,5.10604683,1945.8,1945.7,0.19577232]
[1617295851653,5.10604683,1945.8,1945.7,5.20577232]
[1617295851853,5.10604683,1945.8,1945.7,0.19577232]
[1617295852457,5.10604683,1945.8,1945.7,7.90362232]
[1617295854080,5.10604683,1945.8,1945.7,0.19577232]
[1617295855706,6.30604683,1945.8,1945.7,0.19577232]
[1617295856306,5.10604683,1945.8,1945.7,0.19577232]
[1617295856706,6.30604683,1945.8,1945.7,0.19577232]
[1617295856906,5.10604683,1945.8,1945.7,0.19577232]
[1617295858731,7.65604683,1945.8,1945.7,0.19577232]
[1617295859733,7.65604683,1945.8,1945.7,5.20577232]
[1617295859931,7.65604683,1945.8,1945.7,0.19577232]
[1617295861184,7.65604683,1945.8,1945.7,5.20577232]
[1617295862186,7.65604683,1945.8,1945.7,12.91367232]
[1617295862388,7.65604683,1945.8,1945.7,7.90367232]
[1617295864389,7.65604683,1945.8,1945.7,11.36367232]
[1617295866015,10.05604683,1945.8,1945.7,11.36367232]
[1617295866617,10.05604683,1945.8,1945.7,11.75367232]
[1617295866817,10.05604683,1945.8,1945.7,14.59036017]
[1617295867017,10.05604683,1945.8,1945.7,14.58983405]
[1617295868016,10.05604683,1945.8,1945.7,11.75367232]
[1617295870037,10.05604683,1945.8,1945.7,15.67825909]
[1617295871039,10.00604683,1945.8,1945.7,15.67825909]
[1617295872864,10.00604683,1945.8,1945.7,16.48325909]
[1617295873063,14.6347469,1945.9,1945.8,15.3]
[1617295873263,4.3632269,1945.9,1945.8,25.80593149]
[1617295873468,13.9738,1946.8,1946.1,0.42]
[1617295873469,0.14,1946.5,1946.1,0.42]
[1617295873667,0.007,1946.8,1946.5,0.739]
[1617295873898,0.007,1946.8,1946.7,0.39]
[1617295874100,3.55,1946.9,1946.7,0.39]
[1617295874295,3.55,1946.9,1946.8,7.70305]
[1617295874897,3.55,1946.9,1946.7,5.4]
[1617295875097,3.55,1946.9,1946.7,5.01]
[1617295875303,2.55,1946.9,1946.7,5.01]
[1617295875695,2.55,1946.9,1946.8,5.01]
[1617295876297,2.55,1946.9,1946.8,5.4]
[1617295876515,2.55,1946.9,1946.8,0.39]
[1617295876716,2.55,1946.9,1946.7,12.71392]
[1617295876917,2.55,1946.9,1946.8,0.4]
[1617295877517,2.55,1946.9,1946.8,10.67015]
[1617295877918,2.55,1946.9,1946.8,10.27015]
[1617295879138,2.55,1946.9,1946.8,14.09015]
[1617295880139,1.55,1946.9,1946.8,14.09015]
[1617295880941,4.1,1946.9,1946.8,14.09015]
[1617295881541,4.1,1946.9,1946.8,3.82]
[1617295883162,4.1,1946.9,1946.8,4.22]
[1617295883968,4.1,1946.9,1946.8,11.92269]
[1617295884394,4.1,1946.9,1946.8,11.52269]
[1617295885197,3.1,1946.9,1946.8,11.52269]
[1617295885396,3.1,1946.9,1946.8,11.92269]
[1617295886601,3.1,1946.9,1946.8,11.52269]
[1617295887613,3.1,1946.9,1946.8,11.91269]
[1617295887812,3.1,1946.9,1946.8,12.85922149]
[1617295888016,3.1,1946.9,1946.8,11.91269]
[1617295888416,5.65,1946.9,1946.8,11.91269]
[1617295888614,5.65,1946.9,1946.8,12.46922149]
[1617295888815,5.65,1946.9,1946.8,11.52269]
[1617295890044,5.65,1946.9,1946.8,11.51624733]
[1617295890247,4.65,1946.9,1946.8,11.51624733]
[1617295890444,4.65,1946.9,1946.8,45.25624733]
[1617295891644,4.65,1946.9,1946.8,44.84624733]
[1617295893267,3.15,1946.9,1946.8,44.84624733]
[1617295894891,3.15,1946.9,1946.8,37.14355733]
[1617295895089,6.02899881,1946.9,1946.8,37.14355733]
[1617295895288,5.02899881,1946.9,1946.8,33.33]
[1617295895690,7.57899881,1946.9,1946.8,33.33]
[1617295896690,8.72899881,1946.9,1946.8,33.33]
[1617295896891,7.52899881,1946.9,1946.8,33.33]
[1617295897102,24.02899881,1946.9,1946.8,33.33]
[1617295897290,25.22899881,1946.9,1946.8,33.33]
[1617295897514,24.02899881,1946.9,1946.8,33.33]
[1617295898316,25.22899881,1946.9,1946.8,33.33]
[1617295899119,32.93548881,1946.9,1946.8,33.33]
[1617295899517,33.32548881,1946.9,1946.8,32.42286171]
[1617295899721,16.82548881,1946.9,1946.8,32.42286171]
[1617295900342,15.43548881,1946.9,1946.8,32.42286171]
[1617295902539,14.23548881,1946.9,1946.8,32.42286171]
[1617295903163,9.07899881,1946.9,1946.8,32.42286171]
[1617295903567,6.2,1946.9,1946.8,32.42286171]
[1617295903767,8.93230689,1946.9,1946.8,32.42286171]
[1617295905413,5.2,1946.9,1946.8,32.42286171]
[1617295906013,10.85,1946.9,1946.8,32.42286171]
[1617295906613,5.2,1946.9,1946.8,32.42286171]
[1617295907216,6.4,1946.9,1946.8,32.42286171]
[1617295907618,12.90674,1946.9,1946.8,32.42286171]
[1617295908620,5.2,1946.9,1946.8,32.42286171]
[1617295909021,14.5,1946.9,1946.8,32.42286171]
[1617295909417,15.7,1946.9,1946.8,32.42286171]
[1617295909818,14.5,1946.9,1946.8,32.42286171]
[1617295910221,21.20646,1946.9,1946.8,32.42286171]
[1617295910640,23.75646,1946.9,1946.8,32.42286171]
[1617295911641,24.95646,1946.9,1946.8,32.42286171]
[1617295913042,24.95646,1946.9,1946.8,37.43286171]
[1617295913269,23.2,1946.8,1946.3,0.4]
[1617295913470,0.14,1946.6,1946.1,13.83128]
[1617295913671,0.14,1946.6,1946.1,3.556]
[1617295913870,7.84777,1946.6,1946.1,3.556]
[1617295914070,9.04777,1946.6,1946.1,3.556]
[1617295914670,7.84777,1946.6,1946.1,3.871]
[1617295914885,17.02666,1946.9,1946.3,0.4]
[1617295915086,0.14,1946.7,1946.4,0.315]
[1617295915281,5.897,1946.9,1946.5,5.795]
[1617295916088,5.897,1946.9,1946.5,5.41]
[1617295916488,5.897,1946.9,1946.5,5.69]
[1617295916890,10.937,1946.9,1946.6,0.41]
[1617295917098,5.89,1946.9,1946.8,0.38]
[1617295917295,5.89,1946.9,1946.8,13.2451]
[1617295917891,8.44,1946.9,1946.8,13.2451]
[1617295918095,8.44,1946.9,1946.8,20.94945]
[1617295918295,8.44,1946.9,1946.8,21.53672445]
[1617295918542,8.44,1946.9,1946.8,24.77672445]
[1617295920345,7.44,1946.9,1946.8,24.77672445]
[1617295920560,7.221,1946.9,1946.8,24.77672445]
[1617295923350,7.221,1946.9,1946.8,25.72325594]
[1617295924562,7.221,1946.9,1946.8,19.76672445]
[1617295925369,9.771,1946.9,1946.8,19.35672445]
[1617295926593,9.771,1946.9,1946.8,19.74672445]
[1617295926991,2.55,1947.2,1947.0,0.322]
[1617295927191,2.55,1947.2,1947.1,8.75934274]
[1617295927791,2.55,1947.2,1947.1,20.56043274]
[1617295927991,5.05,1947.5,1947.2,7.05]
[1617295928200,5.05,1947.5,1947.4,5.60091948]
[1617295928792,5.05,1947.5,1947.4,13.30161948]
[1617295929012,5.05,1947.5,1947.4,13.58161948]
[1617295929215,4.05,1947.5,1947.4,13.58161948]
[1617295931413,4.05,1947.5,1947.4,16.64161948]
[1617295931644,4.05,1947.5,1947.4,16.36161948]
[1617295932855,6.6,1947.5,1947.4,15.96161948]
[1617295933054,6.6,1947.5,1947.4,8.26091948]
[1617295934264,5.6,1947.5,1947.4,5.11068848]
[1617295935265,5.6,1947.5,1947.4,0.19091948]
[1617295936470,3.50556731,1947.5,1947.4,0.19091948]
[1617295936666,16.90556731,1947.5,1947.4,0.19091948]
[1617295939290,15.90556731,1947.5,1947.4,0.19091948]
[1617295940115,18.45556731,1947.5,1947.4,0.19091948]
[1617295942742,27.0,1947.4,1946.6,12.8357]
[1617295942944,0.39,1947.1,1946.4,5.09406894]
[1617295943144,0.007,1946.9,1946.4,5.0]
[1617295943942,0.007,1946.9,1946.3,0.39]
[1617295944142,0.007,1946.9,1946.3,0.67]
[1617295944348,10.39410511,1947.0,1946.5,0.39]
[1617295944543,5.04,1946.9,1946.3,0.4]
[1617295944778,2.68804926,1946.8,1946.1,3.556]
[1617295944978,2.68804926,1946.8,1946.2,0.41]
[1617295945177,7.72948905,1946.9,1946.2,0.41]
[1617295945378,17.72948905,1946.9,1946.2,0.41]
[1617295945577,17.72948905,1946.9,1946.3,0.14210666]
[1617295945982,7.72948905,1946.9,1946.3,0.14210666]
[1617295946783,7.72948905,1946.9,1946.4,5.01]
[1617295947182,15.43667905,1946.9,1946.3,5.15210666]
[1617295947394,5.04,1946.9,1946.5,0.701]
[1617295947593,2.55,1946.9,1946.6,0.39]
[1617295947793,2.55,1946.9,1946.7,5.01]
[1617295948198,2.55,1946.9,1946.6,0.39]
[1617295948395,2.55,1946.9,1946.5,0.301]
[1617295948595,2.55,1946.9,1946.5,0.66]
[1617295948995,2.55,1946.9,1946.5,0.38]
[1617295949396,1.55,1946.9,1946.5,0.38]
[1617295949598,1.55,1946.9,1946.6,5.01]
[1617295951239,2.68490815,1946.8,1946.6,5.01]
[1617295951441,1.55,1946.9,1946.6,5.01]
[1617295951842,11.55,1946.9,1946.6,5.01]
[1617295952042,1.55,1946.9,1946.6,5.01]
[1617295952245,1.55,1946.9,1946.5,0.4]
[1617295953848,1.55,1946.9,1946.3,5.83210666]
[1617295954244,0.55,1946.9,1946.3,13.53855666]
[1617295954443,3.14,1946.8,1946.3,13.53855666]
[1617295954848,5.69,1946.8,1946.3,13.53855666]
[1617295955266,5.69,1946.8,1946.4,0.4]